Cogmind - Beta 17 @@@ ROGUE MODE // 2026.08.06 @ 20:36:33 Player: Suffixing Result: Destroyed by H-66 Slayer with Gauss Rifle Performance ------------- Evolutions (4) 2000 Regions Visited (14) 2800 Robots Destroyed (194) 970 Value Destroyed (10033) 10033 Prototype IDs (8) 160 Alien Tech Used (0) 0 Bonus (2978) 2978 TOTAL SCORE: 18941 Bonus ------- High Alert Combat Kills 1507 Follower Combat Kills 371 Entered Garrisons 800 Aligned with FarCom 300 Cogmind --------- Core Integrity 0/850 Matter 300/300 Energy 90/100 System Corruption 7% Temperature Cool (0) Movement Core (500) Ox9 Location -6/Garrison Parts ------- > --- POWER (1) -------- (None) > --- PROPULSION (4) --- (None) > --- UTILITY (8) ------ Large Storage Unit Core Analyzer > --- WEAPON (2) ------- Enhanced Force Lance > --- INVENTORY (15) --- Carbon-fiber Leg Improved Carbon-fiber Leg Flexi-carbon Leg High-capacity Storage Unit PSU Rigger Mini Assault Cannon Power Maul Peak State ------------ > --- POWER ------------ Heavy Deuterium Engine > --- PROPULSION ------- Titanium Leg Titanium Leg Improved Carbon-fiber Leg Improved Titanium Leg > --- UTILITY ---------- Large Storage Unit Gravity Neutralizer Melee Analysis Suite Core Analyzer Force Booster Improved Medium Armor Plating Medium Reactive Plating Hacking Suite > --- WEAPON ----------- Power Maul Longsword +1 > --- INVENTORY -------- Micro Nuclear Core Titanium Leg Titanium Leg Titanium Leg Improved Carbon-fiber Leg High-capacity Storage Unit Microactuators Reaction Control System Improved Medium Armor Plating Improved Medium Armor Plating Medium Reactive Plating Medium Reactive Plating PSU Rigger Mini Assault Cannon Power Maul [Rating: 65] Favorites ----------- Power Heavy Ion Engine Engine Heavy Ion Engine Power Core Micro Nuclear Core Propulsion Titanium Leg Treads Light Treads Leg Titanium Leg Utility Large Storage Unit Device Microactuators Storage Large Storage Unit Processor Core Analyzer Hackware Hacking Suite Protection Medium Reactive Plating Weapon Longsword +1 Energy Gun Heavy Particle Gun Ballistic Gun Assault Rifle Ballistic Cannon Light Cannon Launcher Proton Missile Launcher Impact Weapon Power Maul Slashing Weapon Longsword +1 Piercing Weapon Enhanced Force Lance Build | -11 -10 -10 -10 -9 -8 -8 -8 -8 -8 -7 -7 -7 -6 -6 ------- Run | Yrd Mat Min Exi Min Mat Gar Mat Gar Mat Fac Gar Fac Fac Gar Slots Evolved 8 | . . . . . 4 . . . . 2 . . 2 . Power . | . . . . . . . . . . . . . . . Propulsion 2 | . . . . . 2 . . . . . . . . . Utility 6 | . . . . . 2 . . . . 2 . . 2 . Weapon . | . . . . . . . . . . . . . . . Parts Attached 88 | . 9 2 2 . 15 4 3 6 9 5 7 7 3 16 Power 13 | . 1 . . . 4 1 . . 3 . 1 1 . 2 Engine 10 | . 1 . . . 3 1 . . 3 . . 1 . 1 Core 3 | . . . . . 1 . . . . . 1 . . 1 Reactor . | . . . . . . . . . . . . . . . Propulsion 32 | . 2 . 2 . 4 1 1 4 5 . 2 4 . 7 Treads 2 | . 2 . . . . . . . . . . . . . Leg 30 | . . . 2 . 4 1 1 4 5 . 2 4 . 7 Wheel . | . . . . . . . . . . . . . . . Hover . | . . . . . . . . . . . . . . . Flight . | . . . . . . . . . . . . . . . Utility 29 | . 1 1 . . 5 1 1 1 1 5 3 1 3 6 Device 9 | . . . . . 2 . . . . 3 2 . . 2 Storage 1 | . 1 . . . . . . . . . . . . . Processor 4 | . . . . . 1 . . . . 2 . 1 . . Hackware 2 | . . . . . 1 . . . . . . . 1 . Protection 13 | . . 1 . . 1 1 1 1 1 . 1 . 2 4 Artifact . | . . . . . . . . . . . . . . . Weapon 14 | . 5 1 . . 2 1 1 1 . . 1 1 . 1 Energy Gun 3 | . 2 . . . 1 . . . . . . . . . Energy Cannon . | . . . . . . . . . . . . . . . Ballistic Gun 2 | . 1 . . . . . . . . . 1 . . . Ballistic Cannon 3 | . 2 . . . . . . . . . . 1 . . Launcher 2 | . . 1 . . . 1 . . . . . . . . Special Weapon . | . . . . . . . . . . . . . . . Impact Weapon 2 | . . . . . . . 1 1 . . . . . . Slashing Weapon 1 | . . . . . 1 . . . . . . . . . Piercing Weapon 1 | . . . . . . . . . . . . . . 1 Special Melee Weapon . | . . . . . . . . . . . . . . . Unidentified Prototypes 8 | . . . 1 . 3 . . . . . 1 2 . 1 Corrupted Parts 2 | . . . . . 1 . . . . . . 1 . . System Corruption 2 | . . . . . 1 . . . . . . 1 . . Parts Lost 50 | . . . . . 1 4 2 6 4 . 2 2 . 29 Power 6 | . . . . . . 1 . . 2 . . . . 3 Propulsion 23 | . . . . . . 2 2 4 2 . 1 1 . 11 Utility 17 | . . . . . 1 . . 1 . . 1 1 . 13 Weapon 4 | . . . . . . 1 . 1 . . . . . 2 Highest Loss Streak 19 | . . . . . 1 2 1 2 1 . 1 1 . 19 To Critical Strikes 1 | . . . . . . . . 1 . . . . . . Average Backups 13 | . 6 7 11 14 14 14 13 11 13 13 14 14 13 14 Power . | . 1 2 2 2 1 . . . . 1 1 1 1 . Propulsion 3 | . 2 2 4 5 3 3 1 3 3 2 3 4 4 5 Utility 6 | . 1 2 3 4 4 6 7 6 8 9 9 7 6 5 Weapon 2 | . 1 1 1 2 3 4 4 1 1 1 1 1 2 1 Tool/Special . | . . . . . . . . . . . . . . . Unused Backups 35 | . 7 . . 1 3 1 3 . 6 . 3 4 . 7 Power 4 | . . . . . . . . . . . 1 1 . 2 Propulsion 17 | . 3 . . 1 2 . . . 4 . 1 3 . 3 Utility 8 | . 2 . . . 1 . . . 2 . 1 . . 2 Weapon 6 | . 2 . . . . 1 3 . . . . . . . Tool/Special . | . . . . . . . . . . . . . . . Average Slot Usage (%) 96 | . 84 89 100 100 91 96 100 99 99 99 99 100 99 97 Engine 8 | . 14 14 14 14 7 9 9 9 8 7 6 5 6 5 Treads 3 | . 19 28 19 . . . . . . . . . . . Leg 27 | . 8 . 8 28 31 35 36 35 35 30 30 30 26 25 Device 3 | . . . . . 3 . . . . 7 6 7 13 12 Storage 9 | . 14 14 14 14 9 9 9 9 9 7 7 7 6 6 Processor 8 | . . . . . 1 9 9 9 9 14 15 15 13 12 Hackware 6 | . . . . . 7 9 9 9 9 7 7 7 6 5 Protection 8 | . . 3 14 14 10 9 9 8 9 7 7 7 12 12 Energy Gun 2 | . 15 . . . 8 6 . . . . . . . . Ballistic Cannon 3 | . 10 27 28 28 . . . . . . . . . . Impact Weapon 4 | . . . . . . . 2 8 9 7 6 7 6 6 Slashing Weapon 6 | . . . . . 8 9 9 9 9 7 7 7 6 5 Peak Build Rating 65 | . 7 8 28 29 60 61 58 55 49 46 52 55 63 65 Average Rating 45 | . 6 7 14 28 54 58 57 50 41 45 47 53 62 60 On Entrance 36 | 6 6 7 8 28 29 60 58 55 43 39 45 51 55 63 Avg Prop Armor Cover (%) 10 | . . . . . 11 11 . . 9 . . . . . Naked Turns . | . . . . . . . . . . . . . . . Heaviest Build 72 | 11 29 32 32 32 43 42 42 42 53 56 56 59 71 72 Greatest Support 96 | 20 40 40 60 60 96 96 93 88 79 54 59 72 72 72 Greatest Overweight (x) 1 | . . . . . 1 1 . . 1 1 1 1 . 1 Average Overweight (x) . | . . . . . . . . . . . . . . . Largest Inventory Capacity 15 | . 15 15 15 15 15 15 15 15 15 15 15 15 15 15 Average Capacity 14 | . 8 15 15 15 15 15 15 15 15 15 15 15 15 15 Most Carried 15 | . 8 10 14 15 15 15 15 14 15 15 15 15 15 15 Average Carried 13 | . 6 7 11 14 14 14 13 11 13 13 14 14 13 14 Final Capacity 15 | 8 15 15 15 15 15 15 15 15 15 15 15 15 15 15 Final Carried 15 | 6 7 10 14 15 14 14 10 12 15 15 15 15 14 7 Class Distribution -------------------- 35% | Scavenger-Mutant 33% | Scavenger-Gladiator 30% | Mutant Dominant Class ---------------- Mutant | -10/Materials Mutant | -10/Mines Mutant | -10/Exiles Mutant | -9/Mines Mutant | -8/Materials Scavenger-Mutant | -8/Garrison Scavenger-Mutant | -8/Materials Mutant | -8/Garrison Scavenger-Mutant | -8/Materials Scavenger-Gladiator | -7/Factory Scavenger-Gladiator | -7/Garrison Scavenger-Gladiator | -7/Factory Scavenger-Gladiator | -6/Factory Scavenger-Gladiator | -6/Garrison Resources | -11 -10 -10 -10 -9 -8 -8 -8 -8 -8 -7 -7 -7 -6 -6 ----------- Run | Yrd Mat Min Exi Min Mat Gar Mat Gar Mat Fac Gar Fac Fac Gar Matter Collected 1859 | 200 135 206 . 26 155 96 129 187 186 53 101 112 . 273 Remotely . | . . . . . . . . . . . . . . . Salvage Created 8088 | . 571 63 . 7 754 747 742 1018 1229 106 564 758 . 1529 Parts 436 | . 32 3 . . 33 45 47 52 59 5 29 46 . 85 Haulers Intercepted 5 | . 2 . . . 1 . . . 1 . . 1 . . Recyclers Shooed 2 | . 2 . . . . . . . . . . . . . Parts Field Recycled . | . . . . . . . . . . . . . . . Retrieved Matter . | . . . . . . . . . . . . . . . Parts Self-Destructed . | . . . . . . . . . . . . . . . Prevented . | . . . . . . . . . . . . . . . Parts Restored . | . . . . . . . . . . . . . . . Kills | -11 -10 -10 -10 -9 -8 -8 -8 -8 -8 -7 -7 -7 -6 -6 ------- Run | Yrd Mat Min Exi Min Mat Gar Mat Gar Mat Fac Gar Fac Fac Gar Combat Hostiles Destroyed 153 | . 9 5 . . 13 19 10 23 15 2 14 8 . 35 Melee 132 | . . . . . 13 18 10 20 14 2 14 8 . 33 Guns 8 | . 7 . . . . 1 . . . . . . . . Cannons 4 | . 2 2 . . . . . . . . . . . . AOE 6 | . . 3 . . . . . 3 . . . . . . Classes Destroyed 16 | . 4 1 . 1 2 3 4 . . . . . . 1 Worker 7 | . . . . 1 . . 2 . 1 . . 3 . . Builder 7 | . . . . . . . 2 . 3 . . 2 . . Tunneler 4 | . . . . . . . 3 . 1 . . . . . Hauler 5 | . 2 . . . 1 . . . 1 . . 1 . . Recycler 9 | . 1 . . . 2 . 1 . 3 . . 2 . . Operator 5 | . 2 . . . . . 1 . 1 . . 1 . . Watcher 4 | . . . . . . . 1 . 2 . . 1 . . Swarmer 39 | . . 3 . . 4 5 . 4 . . 5 1 . 17 Saboteur 1 | . . . . . . 1 . . . . . . . . Grunt 66 | . 9 2 . . 5 5 6 13 10 2 6 3 . 5 Brawler 1 | . . . . . . . . . . . . . . 1 Duelist 3 | . . . . . . . 1 1 . . . . . 1 Sentry 20 | . . . . . . 4 3 2 4 . . 1 . 6 Specialist 3 | . . . . . 2 . . . . . 1 . . . Hunter 9 | . . . . . 2 . . . 1 . 1 2 . 3 Programmer 10 | . . . . . . 3 . 3 . . 1 1 . 2 Thug 1 | . . . . . . 1 . . . . . . . . Best Kill Streak 7 | . 3 3 . 1 4 4 4 7 4 1 5 2 . 7 Combat Bots Only 7 | . 3 3 . . 4 4 2 7 3 1 5 2 . 7 Max Kills in Single Turn 3 | . 1 2 . 1 1 1 1 3 1 1 1 1 . 1 Gunslinging . | . . . . . . . . . . . . . . . Exploded 3 | . . 2 . . . . . 3 . . . . . . Melee 1 | . . . . . 1 1 1 1 1 1 1 1 . 1 Uniques/NPCs Destroyed . | . . . . . . . . . . . . . . . Combat | -11 -10 -10 -10 -9 -8 -8 -8 -8 -8 -7 -7 -7 -6 -6 -------- Run | Yrd Mat Min Exi Min Mat Gar Mat Gar Mat Fac Gar Fac Fac Gar Hostile Shots Fired 1098 | . 27 29 . 6 76 90 30 82 71 6 55 126 10 490 Missed 328 | . 6 13 . 4 22 24 13 23 21 3 17 43 8 131 Hits 770 | . 21 16 . 2 54 66 17 59 50 3 38 83 2 359 Melee 7 | . . . . . . 1 2 1 . . . . . 3 Projectile 763 | . 21 16 . 2 54 65 15 58 50 3 38 83 2 356 Critical Strikes 13 | . . 1 . . 2 . . 1 2 . 1 1 . 5 Part Disruptions 2 | . . . . . . 2 . . . . . . . . Damage Taken 10199 | . 269 198 . 31 553 887 659 797 819 32 451 685 39 4779 Core 1536 | . 41 11 . . 103 138 29 140 103 . 13 107 18 833 Absorbed by Shields 124 | . . . . . . . . . . 13 111 . . . Ignored by Resistances 975 | . . . . . . . . . 12 . 124 217 . 622 Core Remaining (%) 66 | 100 . . . 79 . . . . 6 . . 82 . . Volleys Fired 78 | . 40 16 . 1 1 7 . 2 . . 2 . . 9 Largest 2 | . 2 2 . 2 1 1 . 1 . . 1 . . 1 Hottest 80 | . 80 60 . 60 55 55 . 39 . . 23 . . 40 Shots Fired 136 | . 80 29 . 2 1 9 2 2 . . 2 . . 9 Gun 77 | . 66 . . . 1 8 . . . . 2 . . . Cannon 51 | . 14 26 . 2 . . . . . . . . . 9 Launcher 8 | . . 3 . . . 1 2 2 . . . . . . Special . | . . . . . . . . . . . . . . . Kinetic 56 | . 17 26 . 2 . . . . . . 2 . . 9 Thermal 12 | . 3 . . . 1 8 . . . . . . . . Explosive 3 | . . 3 . . . . . . . . . . . . Electromagnetic 65 | . 60 . . . . 1 2 2 . . . . . . Robot Hit Streak 8 | . 8 7 . . . 1 1 2 . . . . . 2 Robot Miss Streak 5 | . 3 2 . 3 4 5 . . . . . . . 2 Penetration Max . | . . . . . . . . . . . . . . . Secondary Targets 1 | . 1 . . . . . . . . . . . . . Max Gunslinging Chain 1 | . 1 . . . . . . . . . . . . . Shots Hit Robots 402 | . 37 15 . . 29 43 32 43 56 2 30 25 . 90 Core Hits 188 | . 23 6 . . 14 18 15 23 22 2 15 14 . 36 Critical Kills 2 | . . . . . . . . 1 . . . . . 1 Critical Parts Destroyed 6 | . . . . . . . . . . . . . . 6 Critical Strikes 36 | . 1 . . . 2 5 1 4 5 . 2 1 . 15 Corrupt 1 | . 1 . . . . . . . . . . . . . Smash 8 | . . . . . . . . 1 . . . . . 7 Sever 25 | . . . . . 2 5 1 3 5 . 2 1 . 6 Impale 2 | . . . . . . . . . . . . . . 2 Melee Attacks 487 | . . . . . 33 75 43 65 66 2 44 31 2 126 Impact 45 | . . . . . . . . 5 6 . 4 1 . 29 Slashing 427 | . . . . . 33 75 43 60 60 2 40 30 2 82 Piercing 15 | . . . . . . . . . . . . . . 15 Sneak Attacks 47 | . . . . . 4 1 11 5 11 . 5 9 . 1 Combat Hostiles 7 | . . . . . . 1 . 3 1 . 1 . . 1 Follow-up Attacks 18 | . . . . . . . . 4 3 . 3 1 . 7 Damage Inflicted 20145 | . 660 419 . 82 1558 1911 1903 2338 3085 92 1762 1697 . 4638 Guns 559 | . 542 . . . . 17 . . . . . . . . Cannons 424 | . 102 217 . . . . . . . . . . . 105 Explosions 356 | . . 200 . . . . . 138 . . 18 . . . Melee 18706 | . . . . . 1558 1894 1903 2200 3085 92 1744 1697 . 4533 Ramming 100 | . 16 2 . 82 . . . . . . . . . . Kinetic 450 | . 128 217 . . . . . . . . . . . 105 Thermal 28 | . 11 . . . . 17 . . . . . . . . Explosive 218 | . . 200 . . . . . . . . 18 . . . Electromagnetic 643 | . 505 . . . . . . 138 . . . . . . Impact 1296 | . . . . . . . . 210 124 . 121 48 . 793 Slashing 16676 | . . . . . 1558 1894 1903 1990 2961 92 1623 1649 . 3006 Piercing 734 | . . . . . . . . . . . . . . 734 Highest Corruption 10 | . . . . . 1 5 8 10 10 . 1 2 . 7 Average Corruption 5 | . . . . . 1 2 6 8 10 . 1 1 . 6 Corruption Purged . | . . . . . . . . . . . . . . . Corruption Blocked . | . . . . . . . . . . . . . . . Effects 194 | . . . . . 6 20 39 31 52 . 4 15 . 27 Message Errors 46 | . . . . . 1 2 11 4 12 . 2 3 . 11 Matter Fused 50 | . . . . . 2 5 10 12 13 . 1 5 . 2 Heat Flow Errors 25 | . . . . . 1 5 6 2 4 . . 2 . 5 Energy Discharges 21 | . . . . . . 2 4 2 9 . . 2 . 2 Parts Rejected 1 | . . . . . . . . . 1 . . . . . Parts Fused 2 | . . . . . . 1 . . . . . . . 1 Data Loss (minor) 27 | . . . . . 2 3 4 5 7 . 1 1 . 4 Data Loss (major) 12 | . . . . . . . 2 4 3 . . 2 . 1 Misfires 4 | . . . . . . 2 2 . . . . . . . Alerts 5 | . . . . . . . . 2 2 . . . . 1 Misdirections 1 | . . . . . . . . . 1 . . . . . Overload Shots . | . . . . . . . . . . . . . . . Overflow Damage 2327 | . . . . 17 176 133 427 72 505 . 116 383 . 498 Projectiles . | . . . . . . . . . . . . . . . Explosions 7 | . . . . . . . . 7 . . . . . . Melee 2320 | . . . . 17 176 133 427 65 505 . 116 383 . 498 Knockbacks 6 | . . 1 . . . . . 2 . . . . . 3 Impact 5 | . . . . . . . . 2 . . . . . 3 Kinetic 1 | . . 1 . . . . . . . . . . . . Secondary . | . . . . . . . . . . . . . . . Self-Inflicted Damage 328 | . . . . . . . 195 47 . . 86 . . . Shots 7 | . . . . . . . 4 2 . . 1 . . . Rammed 7 | . 5 2 . . . . . . . . . . . . Targets Rammed 12 | . 6 2 . 3 1 . . . . . . . . . Kicked 5 | . 1 . . 3 1 . . . . . . . . . Crushed . | . . . . . . . . . . . . . . . Highest Temperature 276 | . 111 81 . 13 276 226 231 261 263 . . 274 . 274 Average Temperature 71 | . 36 42 . 10 117 60 81 106 95 . . 115 . 106 Received Heat Transfer 1755 | . 150 105 . 6 126 207 63 153 432 18 111 162 21 201 Siege Activations . | . . . . . . . . . . . . . . . Martial Activations . | . . . . . . . . . . . . . . . Shielding Activations . | . . . . . . . . . . . . . . . Robots Disrupted . | . . . . . . . . . . . . . . . Combat Hostiles . | . . . . . . . . . . . . . . . Robots Corrupted 6 | . 1 . . 1 . . . . 2 . . . . 2 Combat Hostiles 3 | . . . . . . . . . 1 . . . . 2 Parts Fried 8 | . 2 . . 1 . . . . 2 . . . . 3 Impact Corruptions 15 | . . . . 2 . . . . 2 . . . . 11 Robots Melted . | . . . . . . . . . . . . . . . Combat Hostiles . | . . . . . . . . . . . . . . . Parts Melted . | . . . . . . . . . . . . . . . Heat Transferred 62 | . 25 . . . . 37 . . . . . . . . Parts Sabotaged 3 | . . . . . . 3 . . . . . . . . Parts Stolen . | . . . . . . . . . . . . . . . Parts Stripped . | . . . . . . . . . . . . . . . Power Chain Reactions 1 | . . . . . . . . 1 . . . . . . Alert | -11 -10 -10 -10 -9 -8 -8 -8 -8 -8 -7 -7 -7 -6 -6 ------- Run | Yrd Mat Min Exi Min Mat Gar Mat Gar Mat Fac Gar Fac Fac Gar Maximum Alert Level 4 | . . . . . . 3 2 4 2 1 4 2 1 4 Low Security (%) 30 | . 100 100 . 100 100 25 . . . . 2 . 92 23 Level 1 13 | . . . . . . 18 55 8 . 100 25 2 7 4 Level 2 37 | . . . . . . 24 44 22 100 . 31 97 . 22 Level 3 14 | . . . . . . 32 . 44 . . 32 . . 45 Level 4 3 | . . . . . . . . 24 . . 8 . . 4 Level 5 . | . . . . . . . . . . . . . . . High Security . | . . . . . . . . . . . . . . . Max Security . | . . . . . . . . . . . . . . . Peak Influence 1249 | . 147 94 . 5 109 1007 510 1249 683 289 1233 637 207 1184 Initial 637 | . . 5 . . . 50 490 315 608 289 175 637 207 74 Average 435 | . 46 19 . . 38 479 375 863 603 245 681 467 153 630 Influence Increases 7008 | . 369 144 . 5 357 1017 667 994 595 72 1200 338 20 1230 Destroy 0b10 Robot/C 3320 | . 180 100 . . 260 460 200 460 300 40 460 160 . 700 Destroy 0b10 Robot/NC 210 | . 25 . . 5 15 . 50 . 60 . . 50 . 5 Destroy Leader 428 | . 44 20 . . 52 20 42 30 96 . 30 64 . 30 Allied During Kill 39 | . . . . . . 12 . . . . 27 . . . Successful Hack 103 | . . . . . . 12 3 12 . 32 14 . 18 12 Disable Machine 240 | . 75 15 . . . 15 75 30 . . 30 . . . Anti-Garrison Action 1300 | . . . . . . 300 . 200 . . 500 . . 300 Destroy Structure 348 | . . 9 . . . 138 42 52 4 . 49 4 2 48 Partial Spotted 30 | . . . . . . . 15 15 . . . . . . Lose Combat Pursuer 990 | . 45 . . . 30 60 240 195 135 . 90 60 . 135 Influence Decreases 5994 | . 354 153 6 5 280 87 1189 230 1207 458 236 1128 338 323 Entered New Map 2624 | . . 10 6 . . 27 517 170 641 348 76 578 218 33 Time Decay 2560 | . 354 143 . 5 270 . 502 . 526 110 . 530 120 . Lost Part 500 | . . . . . 10 40 20 60 40 . 20 20 . 290 Lost Ally 160 | . . . . . . 20 . . . . 140 . . . Purge Threat 150 | . . . . . . . 150 . . . . . . . Squads Dispatched 19 | . 2 . . 1 3 . 4 . 3 . . 4 2 . Investigation 5 | . 1 . . 1 . . . . 1 . . 2 . . Extermination 1 | . . . . . . . . . . . . 1 . . Reinforcement 12 | . 1 . . . 3 . 4 . 1 . . 1 2 . Assault 1 | . . . . . . . . . 1 . . . . . Garrison . | . . . . . . . . . . . . . . . Intercept . | . . . . . . . . . . . . . . . Searches Triggered . | . . . . . . . . . . . . . . . Construction Impeded . | . . . . . . . . . . . . . . . Haulers Reinforced . | . . . . . . . . . . . . . . . Active Scanning Responses . | . . . . . . . . . . . . . . . Cargo Convoy Interrupts . | . . . . . . . . . . . . . . . Stealth | -11 -10 -10 -10 -9 -8 -8 -8 -8 -8 -7 -7 -7 -6 -6 --------- Run | Yrd Mat Min Exi Min Mat Gar Mat Gar Mat Fac Gar Fac Fac Gar Distress Signals 13 | . . . . 1 2 . 7 . 2 . . 1 . . Communications Jammed . | . . . . . . . . . . . . . . . Distress Signals . | . . . . . . . . . . . . . . . Times Spotted 286 | . 25 6 . 13 20 27 34 33 28 4 23 24 5 44 Peak Tracking Total 19 | . 3 3 . 19 6 5 5 8 4 3 5 6 5 8 Tactical Retreats 47 | . 2 . . 2 2 4 10 10 6 . 4 4 . 3 Traps | -11 -10 -10 -10 -9 -8 -8 -8 -8 -8 -7 -7 -7 -6 -6 ------- Run | Yrd Mat Min Exi Min Mat Gar Mat Gar Mat Fac Gar Fac Fac Gar Traps Triggered 15 | . 2 . . . 1 . 2 2 1 . 3 . . 4 Indirectly 1 | . . . . . . . . 1 . . . . . . Trap Hack Attempts . | . . . . . . . . . . . . . . . Triggered . | . . . . . . . . . . . . . . . Disarmed . | . . . . . . . . . . . . . . . Reprogrammed . | . . . . . . . . . . . . . . . Reused . | . . . . . . . . . . . . . . . Traps Extracted . | . . . . . . . . . . . . . . . Installed . | . . . . . . . . . . . . . . . Triggered . | . . . . . . . . . . . . . . . Machines | -11 -10 -10 -10 -9 -8 -8 -8 -8 -8 -7 -7 -7 -6 -6 ---------- Run | Yrd Mat Min Exi Min Mat Gar Mat Gar Mat Fac Gar Fac Fac Gar Machines Disabled 35 | . 5 1 . . . 4 5 5 . . 11 . . 4 Max in Single Turn 3 | . 1 1 . . . 1 3 1 . . 2 . . 1 Garrison Relay 14 | . . . . . . 1 . 3 . . 6 . . 4 Phase Generator 2 | . . . . . . 1 . . . . 1 . . . Machines Repaired . | . . . . . . . . . . . . . . . Machines Dismantled . | . . . . . . . . . . . . . . . Machines Sabotaged . | . . . . . . . . . . . . . . . Overloaded Fab Kills . | . . . . . . . . . . . . . . . Hacking | -11 -10 -10 -10 -9 -8 -8 -8 -8 -8 -7 -7 -7 -6 -6 --------- Run | Yrd Mat Min Exi Min Mat Gar Mat Gar Mat Fac Gar Fac Fac Gar Machines Accessed 27 | . 2 . . 1 1 3 3 1 3 2 3 5 2 1 Terminals 17 | . 1 . . . . 3 2 1 2 . 3 3 1 1 Fabricators . | . . . . . . . . . . . . . . . Repair Stations . | . . . . . . . . . . . . . . . Recycling Units 1 | . 1 . . . . . . . . . . . . . Scanalyzers 3 | . . . . . . . . . 1 1 . 1 . . Garrison Access 5 | . . . . . 1 . 1 . . 1 . 1 1 . Total Hacks 60 | . 5 . . 1 4 7 5 3 7 4 7 13 3 1 Successful 21 | . 1 . . 1 1 2 3 1 2 3 2 3 1 1 Failed 38 | . 4 . . . 3 5 2 2 4 1 5 10 2 . Catastrophic 9 | . 1 . . . . 3 1 . 1 . 1 1 1 . Database Lockouts 1 | . . . . . . . . . 1 . . . . . Manual 9 | . 2 . 1 . 2 . 2 . 1 . . 1 . . Terminals 38 | . 2 . . . . 7 4 3 4 . 7 8 2 1 Fabricators . | . . . . . . . . . . . . . . . Repair Stations . | . . . . . . . . . . . . . . . Recycling Units 3 | . 3 . . . . . . . . . . . . . Scanalyzers 8 | . . . . . . . . . 3 3 . 2 . . Garrison Access 10 | . . . . . 4 . 1 . . 1 . 3 1 . Terminal Hacks 10 | . . . . 1 . 2 2 1 . . 2 1 . 1 Open Door 3 | . . . . 1 . 1 . . . . 1 . . . Emergency Access Points 1 | . . . . . . . . . . . . . . 1 Unreport Threat 1 | . . . . . . . 1 . . . . . . . Recall Investigation 1 | . . . . . . . . . . . . 1 . . Recall Reinforcements 1 | . . . . . . . 1 . . . . . . . Garrison Registry 1 | . . . . . . 1 . . . . . . . . Patrol Navigation 1 | . . . . . . . . 1 . . . . . . Security Stations 1 | . . . . . . . . . . . 1 . . . Fabricator Hacks . | . . . . . . . . . . . . . . . Repair Station Hacks . | . . . . . . . . . . . . . . . Recycling Unit Hacks 1 | . 1 . . . . . . . . . . . . . Retrieve Components 1 | . 1 . . . . . . . . . . . . . Scanalyzer 6 | . . . . . . . . . 2 2 . 2 . . Insert Component 1 | . . . . . . . . . 1 . . . . . Retrieve Study 5 | . . . . . . . . . 1 2 . 2 . . Garrison Access Hacks 4 | . . . . . 1 . 1 . . 1 . . 1 . Unlock Access 4 | . . . . . 1 . 1 . . 1 . . 1 . Unauthorized Hacks . | . . . . . . . . . . . . . . . Terminals . | . . . . . . . . . . . . . . . Fabricators . | . . . . . . . . . . . . . . . Repair Stations . | . . . . . . . . . . . . . . . Recycling Units . | . . . . . . . . . . . . . . . Scanalyzers . | . . . . . . . . . . . . . . . Garrison Access . | . . . . . . . . . . . . . . . Data Cores Recovered 1 | . 1 . . . . . . . . . . . . . Used . | . . . . . . . . . . . . . . . Hacking Detections 20 | . 2 . . . 1 3 2 1 2 . 2 5 2 . Full Trace Events 7 | . 1 . . . . 2 . 1 . . 1 2 . . Feedback Events . | . . . . . . . . . . . . . . . Feedback Blocked . | . . . . . . . . . . . . . . . Robot Schematics Acquired . | . . . . . . . . . . . . . . . Robots Built . | . . . . . . . . . . . . . . . Authchips . | . . . . . . . . . . . . . . . Time . | . . . . . . . . . . . . . . . Total Robot Build Rating . | . . . . . . . . . . . . . . . Part Schematics Acquired . | . . . . . . . . . . . . . . . Parts Built . | . . . . . . . . . . . . . . . Authchips . | . . . . . . . . . . . . . . . Time . | . . . . . . . . . . . . . . . Total Part Build Rating . | . . . . . . . . . . . . . . . Part Studies Acquired 5 | . . . . . . . . . 1 2 . 2 . . Parts Repaired . | . . . . . . . . . . . . . . . Time . | . . . . . . . . . . . . . . . Parts Recycled . | . . . . . . . . . . . . . . . Recycled Matter . | . . . . . . . . . . . . . . . Retrieved Matter . | . . . . . . . . . . . . . . . Retrieved Components 10 | . 10 . . . . . . . . . . . . . Parts Scanalyzed . | . . . . . . . . . . . . . . . Part Schematics Acquired . | . . . . . . . . . . . . . . . Parts Damaged . | . . . . . . . . . . . . . . . Bothacking | -11 -10 -10 -10 -9 -8 -8 -8 -8 -8 -7 -7 -7 -6 -6 ------------ Run | Yrd Mat Min Exi Min Mat Gar Mat Gar Mat Fac Gar Fac Fac Gar Used RIF Installer . | . . . . . . . . . . . . . . . Robots Hacked . | . . . . . . . . . . . . . . . Non-combat . | . . . . . . . . . . . . . . . Combat . | . . . . . . . . . . . . . . . Robot Hacks Applied . | . . . . . . . . . . . . . . . Relay Couplers Released 57 | . . . . . . 4 . 13 . . 24 . . 16 Machine Destruction 53 | . . . . . . 4 . 13 . . 24 . . 12 Programmers 4 | . . . . . . . . . . . . . . 4 Fabnet Peak Effective % . | . . . . . . . . . . . . . . . Robots Rewired 8 | . . . . . . . . . . . 8 . . . Allies Hacked . | . . . . . . . . . . . . . . . Hacks Repelled . | . . . . . . . . . . . . . . . Allies | -11 -10 -10 -10 -9 -8 -8 -8 -8 -8 -7 -7 -7 -6 -6 -------- Run | Yrd Mat Min Exi Min Mat Gar Mat Gar Mat Fac Gar Fac Fac Gar Total Allies 12 | . . 2 . . . 2 . . . . 8 . . . Largest Group 5 | . . 2 2 . . 2 . . . . 5 1 . . Highest-Rated Group 130 | . . 46 46 . . 56 . . . . 130 24 . . Highest-Rated Ally 40 | . . 31 31 . . 31 . . . . 40 24 . . Initial Warlord ECA Mod 21 | . . . . . . . 6 6 11 10 10 21 20 20 Total Orders . | . . . . . . . . . . . . . . . Ally Attacks 59 | . . . . . . 16 . . . . 43 . . . Total Damage 1105 | . . . . . . 194 . . . . 911 . . . Kills 13 | . . . . . . 4 . . . . 9 . . . Allies Corrupted 1 | . . . . . . . . . . . 1 . . . Allies Melted . | . . . . . . . . . . . . . . . Intel | -11 -10 -10 -10 -9 -8 -8 -8 -8 -8 -7 -7 -7 -6 -6 ------- Run | Yrd Mat Min Exi Min Mat Gar Mat Gar Mat Fac Gar Fac Fac Gar Active Infowar (turns) . | . . . . . . . . . . . . . . . Robot Analysis Total . | . . . . . . . . . . . . . . . Derelict Logs Recovered 2 | . . 1 . 1 . . . . . . . . . . Drone Launches . | . . . . . . . . . . . . . . . Drone Recoveries . | . . . . . . . . . . . . . . . Exploration | -11 -10 -10 -10 -9 -8 -8 -8 -8 -8 -7 -7 -7 -6 -6 ------------- Run | Yrd Mat Min Exi Min Mat Gar Mat Gar Mat Fac Gar Fac Fac Gar Turns Passed 12898 | . 1167 709 276 90 941 1319 1342 982 1479 234 1316 1495 252 1296 Spaces Moved 7734 | 1 669 398 208 146 450 701 786 587 738 143 842 1211 208 646 Core . | . . . . . . . . . . . . . . . Treads 954 | . 439 398 117 . . . . . . . . . . . Legs 6780 | 1 230 . 91 146 450 701 786 587 738 143 842 1211 208 646 Wheels . | . . . . . . . . . . . . . . . Hover . | . . . . . . . . . . . . . . . Flight . | . . . . . . . . . . . . . . . Fastest Speed 45 | 120 120 160 90 45 70 70 100 90 90 110 110 110 116 105 Average Speed 118 | 120 146 160 129 55 108 110 104 107 112 143 111 114 116 139 Slowest Speed 190 | 120 160 160 160 90 190 190 105 112 182 187 181 186 116 190 Overloaded Moves 147 | . . . . 113 5 22 . . 7 . . . . . Propulsion Burnouts . | . . . . . . . . . . . . . . . Robots Hopped . | . . . . . . . . . . . . . . . Potential Cave-ins . | . . . . . . . . . . . . . . . Cave-ins Triggered . | . . . . . . . . . . . . . . . Exploration Rate (%) 47 | 2 94 85 60 43 26 56 40 56 59 5 74 38 6 67 Regions Visited 14 Branch Regions 3 Pre-discovered Areas 2 | . . 2 . . . . . . . . . . . . Known Exits Taken 5 | . . . . 1 1 . 1 . . 1 . . 1 . Unknown Exits Taken 6 | 1 1 1 1 . . . . . 1 . . 1 . . Scrap Searched 2 | . . 1 . 1 . . . . . . . . . . Spaces Dug 31 | . . . . . . 4 11 1 4 . 2 4 2 3 Terrain Destroyed 236 | . . 9 . . . 76 59 2 4 . 77 4 2 3 Melee 31 | . . . . . . 4 11 1 4 . 2 4 2 3 Projectile . | . . . . . . . . . . . . . . . AOE 205 | . . 9 . . . 72 48 1 . . 75 . . . Terrain Rammed . | . . . . . . . . . . . . . . . Walls Destroyed . | . . . . . . . . . . . . . . . Machines Disabled . | . . . . . . . . . . . . . . . Actions | -11 -10 -10 -10 -9 -8 -8 -8 -8 -8 -7 -7 -7 -6 -6 --------- Run | Yrd Mat Min Exi Min Mat Gar Mat Gar Mat Fac Gar Fac Fac Gar Total 10874 | . 777 439 213 153 873 1163 1261 869 1325 169 1177 1314 216 925 Wait 2188 | . 28 17 . 1 345 360 421 201 489 13 174 45 1 93 Move 7721 | . 668 397 207 145 449 700 786 586 737 142 841 1210 207 646 Hop . | . . . . . . . . . . . . . . . Pick Up 119 | . 13 4 4 2 16 10 2 8 17 5 10 10 2 16 Fast Attach 8 | . 2 . . . 1 . . . 2 . 2 1 . . Attach 57 | . 4 1 . . 6 7 3 6 3 2 3 2 2 18 Detach 2 | . . . . . . . 1 . . . 1 . . . Swap 50 | . 6 2 2 . 8 1 1 3 5 4 4 5 2 7 Drop 71 | . 10 . . 1 13 3 4 . 12 1 10 11 . 6 Fire 78 | . 40 16 . 1 1 7 . 2 . . 2 . . 9 Melee 461 | . . . . . 33 75 43 60 60 2 41 30 2 115 Ram . | . . . . . . . . . . . . . . . Kick 5 | . 1 . . 3 1 . . . . . . . . . Crush 7 | . 5 2 . . . . . . . . . . . . Escape Stasis 33 | . . . . . . . . 3 . . 15 . . 15 Rewire 74 | . . . . . . . . . . . 74 . . . Trap . | . . . . . . . . . . . . . . . Miscellaneous . | . . . . . . . . . . . . . . . Route ------- -11/Scrapyard -10/Materials (discovered 5 exits: [*Mat x3] / [*Min x2]) -10/Mines (discovered 2 exits: [*Mat] / *Exi) -10/Exiles -9/Mines (discovered 2 exits: *Mat x2) -8/Materials (discovered 2 exits: *Fac / Gar) -8/Garrison (discovered 3 exits: *Mat x3) -8/Materials (discovered 2 exits: *Fac / Gar) -8/Garrison (discovered 2 exits: *Mat x2) -8/Materials -7/Factory -7/Garrison (discovered 2 exits: *Fac x2) -7/Factory (discovered 5 exits: *Fac x3 / [*Sto x2]) -6/Factory -6/Garrison (discovered 2 exits: [*Fac x2]) History --------- Turn | Location | Event 1 | -11/Scrapyard | Discovered new exit (range 0) 1 | -11/Scrapyard | Entered Materials 272 | -10/Materials | Discovered new exit (range 8) 304 | -10/Materials | Build established: Mutant 561 | -10/Materials | Discovered new exit (range 16) 775 | -10/Materials | Discovered new exit (range 7) 1042 | -10/Materials | Discovered new exit (range 13) 1069 | -10/Materials | Discovered new exit (range 4) 1168 | -10/Materials | Entered Mines 1169 | -10/Mines | Learned location of Storage (-7) 1657 | -10/Mines | Joined a pair of Derelicts in attacking an 0b10 outpost 1831 | -10/Mines | Discovered new exit (range 12) 1858 | -10/Mines | Deemed a non-threat by the Exiles lab entrance 1858 | -10/Mines | Discovered new exit (range 5) 1877 | -10/Mines | Entered Exiles 1877 | -10/Exiles | Accompanied by 2 allies 1907 | -10/Exiles | Led the pair of lost Derelicts to a safe place 1917 | -10/Exiles | Met 8R-AWN 1943 | -10/Exiles | Met EX-HEX 1986 | -10/Exiles | Met EX-BIN 2013 | -10/Exiles | Aligned with FarCom system 2015 | -10/Exiles | Given EX-Vault access code 2052 | -10/Exiles | Opened EX-Vault 2057 | -10/Exiles | Found Prototype Leg 2059 | -10/Exiles | Found Prototype Leg 2063 | -10/Exiles | Found Prototype Slashing Weapon 2068 | -10/Exiles | Found Prototype Device 2069 | -10/Exiles | Identified Potential Leg (x2) 2088 | -10/Exiles | Warned to stay clear of 0b10 Research branches 2102 | -10/Exiles | Exiles lab attacked by MAIN.C 2146 | -10/Exiles | Discovered new exit (range 10) 2153 | -10/Exiles | Stole three prototypes: Potential Leg, PSU Rigger, Longsword +1 2153 | -10/Exiles | Entered Mines 2154 | -9/Mines | Assembled infested the area 2198 | -9/Mines | Identified exit to Materials 2214 | -9/Mines | Discovered exit to Materials (range 14) 2226 | -9/Mines | Met a Derelict shopkeep closing up shop 2243 | -9/Mines | Entered Materials 2243 | -8/Materials | Evolved 4 slots: Propulsion x2, Utility x2 2244 | -8/Materials | Identified Longsword +1 2424 | -8/Materials | Identified exit to Garrison 2496 | -8/Materials | Discovered new exit (range 16) 3184 | -8/Materials | Entered Garrison 3257 | -8/Garrison | Build established: Scavenger-Mutant 3353 | -8/Garrison | Triggered checkpoint 3476 | -8/Garrison | Triggered checkpoint 3515 | -8/Garrison | Garrison Relay disabled 3548 | -8/Garrison | Discovered new exit (range 11) 3734 | -8/Garrison | Rescued a captive Derelict 3738 | -8/Garrison | Rescued a captive Derelict 3756 | -8/Garrison | Discovered new exit (range 84) 3756 | -8/Garrison | Discovered new exit (range 43) 3756 | -8/Garrison | Discovered new exit (range 8) 3902 | -8/Garrison | Triggered checkpoint 4493 | -8/Garrison | Phase Generator disabled 4503 | -8/Garrison | Entered Materials 5125 | -8/Materials | Discovered new exit (range 3) 5845 | -8/Materials | Identified exit to Garrison 5845 | -8/Materials | Entered Garrison 5862 | -8/Garrison | Triggered checkpoint 5866 | -8/Garrison | Build established: Mutant 5990 | -8/Garrison | Garrison Relay disabled 6012 | -8/Garrison | Garrison Relay disabled 6157 | -8/Garrison | Spotted B-75 Beast 6157 | -8/Garrison | Spotted B-75 Beast 6176 | -8/Garrison | Core integrity fell below 50% 6485 | -8/Garrison | System corruption reached 10% 6499 | -8/Garrison | Triggered checkpoint 6505 | -8/Garrison | Destroyed 7 combat bots 6568 | -8/Garrison | Discovered new exit (range 8) 6579 | -8/Garrison | Triggered checkpoint 6660 | -8/Garrison | Garrison Relay disabled 6680 | -8/Garrison | Build established: Scavenger-Mutant 6802 | -8/Garrison | Discovered new exit (range 15) 6827 | -8/Garrison | Entered Materials 7018 | -8/Materials | Central database locked down 7627 | -8/Materials | First assault squad dispatched 7736 | -8/Materials | Core integrity fell below 20% 8295 | -8/Materials | Discovered new exit (range 5) 8306 | -8/Materials | Entered Factory 8306 | -7/Factory | Evolved 2 slots: Utility x2 8308 | -7/Factory | FarCom data flow suspended 8517 | -7/Factory | Identified exit to Garrison 8540 | -7/Factory | Entered Garrison 8587 | -7/Garrison | Build established: Scavenger-Gladiator 8714 | -7/Garrison | Learned Factory security intel 8870 | -7/Garrison | Triggered checkpoint 8905 | -7/Garrison | Garrison Relay disabled 8934 | -7/Garrison | Phase Generator disabled 9008 | -7/Garrison | Triggered checkpoint 9045 | -7/Garrison | Discovered new exit (range 10) 9058 | -7/Garrison | Triggered checkpoint 9111 | -7/Garrison | Identified PSU Rigger 9150 | -7/Garrison | Garrison Relay disabled 9214 | -7/Garrison | Triggered checkpoint 9396 | -7/Garrison | Discovered new exit (range 10) 9504 | -7/Garrison | Garrison Relay disabled 9766 | -7/Garrison | Triggered checkpoint 9767 | -7/Garrison | Garrison Relay disabled 9856 | -7/Garrison | Entered Factory 9856 | -7/Factory | Accompanied by 1 ally 10456 | -7/Factory | Discovered new exit (range 7) 10887 | -7/Factory | Discovered new exit (range 16) 10959 | -7/Factory | Discovered new exit (range 7) 11333 | -7/Factory | Discovered new exit (range 15) 11349 | -7/Factory | Discovered new exit (range 10) 11351 | -7/Factory | Entered another Factory area 11351 | -6/Factory | Evolved 2 slots: Utility x2 11538 | -6/Factory | Identified exit to Garrison 11603 | -6/Factory | Entered Garrison 11649 | -6/Garrison | Triggered checkpoint 11714 | -6/Garrison | Garrison Relay disabled 11769 | -6/Garrison | Triggered checkpoint 11998 | -6/Garrison | Discovered new exit (range 12) 12061 | -6/Garrison | Triggered checkpoint 12121 | -6/Garrison | Garrison Relay disabled 12137 | -6/Garrison | Garrison Relay disabled 12219 | -6/Garrison | Triggered checkpoint 12308 | -6/Garrison | Destroyed 7 combat bots 12331 | -6/Garrison | Lost 3 parts (1n2u) 12472 | -6/Garrison | Lost 3 parts (1p1n1u) 12583 | -6/Garrison | Triggered checkpoint 12590 | -6/Garrison | Discovered new exit (range 11) 12679 | -6/Garrison | Triggered checkpoint 12712 | -6/Garrison | Garrison Relay disabled 12885 | -6/Garrison | Core integrity fell below 50% 12894 | -6/Garrison | Core integrity fell below 20% 12899 | -6/Garrison | Destroyed by H-66 Slayer with Gauss Rifle Last Messages --------------- 12871_ Slug penetrates Reinforced Barrier. 12875_ Slug penetrates Wall. 12877_ Penetrated by Slug. 12877_ Slug penetrates Wall. 12877_ Slug penetrates H-66 Slayer. 12878_ Penetrated by Slug. 12880_ H-66 Slayer destroyed. 12880_ Slug penetrates Wall. 12881_ Penetrated by Slug. 12881_ Carbon-fiber Leg+ destroyed. 12881_ Slug penetrates Wall. 12884_ Penetrated by Slug. 12884_ Slug penetrates H-66 Slayer. 12884_ H-66 Slayer suffers critical hit (Destroy). 12887_ Penetrated by Slug. 12887_ Carbon-fiber Leg+ destroyed. 12888_ Penetrated by Slug. 12899_ Destroyed Lgt. Fission Core. 12899_ Penetrated by Slug. Map ----- +----------------------------------------------------+ | ?????????????????????????????????????????????????? | | ?????????????????????????????????????????????????? | | ?????????????????????????????????????????????????? | | ?????????????????????????????????????????????????? | | ?????????????????????????????????????????????????? | | ??????????????###????????????????????????????????? | | ????????##????!!#????????????????????????????????? | | ?????????T##?? !????????????????????????????????? | | ????????? ?? !????????????????????????????????? | | ????????? #??# #????????????????????????????????? | | ?????????# #### #????????????????????????????????? | | ?????????# ?+ #????????????????????????????????? | | ?????????# #?# #?############???????????????????? | | ??????####"### #?#""""""""""#???????????????????? | | ??????# ##=%#?#"""=]=!"""#???????????????????? | | ?????## ## [#?#"" ""#???????????????????? | | ?????# [%= #?#"] ="#???????????????????? | | ?????+ = [#?#" +++/ ["#???????????????????? | | ?????###!!!###[=#?#"[ / / ="#???????????????????? | | ??????#"" ""##*%#?#"= / / !"#???????????????????? | | ??????########*%#?# ! ++++ /"#???????????????????? | | ?????????????# #?# [ *"#???????????????????? | | ?????????????# #?# " ""#???????????????????? | | ?????????????# #?### h ###???????????????????? | | ?????????????# #???# =hh#?????????????????????? | | ?????????????# ###?####%@##???????????#?????????? | | ???#+######### #T######;;########## < #?????????? | | ???# #?????????? | | ???# #?????????? | | ???# #?????????? | | ???# ###+###++######## #############?????????? | | ???# #?????# #??????# #??##############?????? | | ???# #?????# #??????##;##??# """"""#?????? | | ???# #?????#[%#???????# #??## " "" "#?????? | | ???# +?????#!!######### #### ## " "##????? | | #### #?????# %%=[%![ # "#????? | | ## #?????# [#####!######## ## "#????? | | ## #?????# !#??## #####??###### "#????? | | =[%!! ####### #??#! !!! #????#""" ["#????? | | [[*%=*["% #??#! !!!!#????#" ["#????? | | [=[==%[+= #??########????#"" " "["#????? | | !##%%*##########??????????????#"" " ""[" "#????? | | !##[^[###?????????????????????#" """"""""#????? | | #?????????????????????##############????? | | ^ #???????????????????????????????????????? | | ^^ #???????????????????????????????????????? | | "%* #???????????????????????????????????????? | | ^^##"! ###???????????????????????????????????????? | | ^ ##% %##########????????????????????????????????? | | [! #############????????????????????? | +----------------------------------------------------+ Best States ------------- Heat Dissipation 37 Energy Generation 18 Energy Capacity 310 Matter Stores 300 Matter Capacity 300 Sight Range 16 Terrain Scan Density 10 Armor Coverage 450 Resistance: KI 30 Melee Speed Boost 20 Evasion (%) 63 Melee Accuracy 6 Core Analysis 6 Recoil Reduction 2 Force Boost 20 Offensive Hacking 10 Item Schematics ----------------- None Robot Schematics ------------------ None Fabricated ------------ Nothing Repaired ---------- Nothing Studied --------- Aluminum Leg | -8/Materials | Hacked Titanium Leg | -7/Factory | Hacked Power Maul | -7/Factory | Hacked Imp. Carbon-fiber Leg | -7/Factory | Hacked Carbon-fiber Leg | -7/Factory | Hacked Alien Tech Used ----------------- None Achievements -------------- Bullet Installation Challenges ------------ None Game ------ Seed ReflectiveGravitonLegs Manual? 1 Play Time 01:23:33 Cumulative 76.0 hours Start 2026.08.06 @ 19:02:38 End 2026.08.06 @ 20:36:33 Sessions 1 Manual Loads 0 Difficulty Rogue Special Mode None Game No. 316 Rogue 271 Adventurer 45 Explorer 0 Win Type - Total 3 Types 3/0/0/0/0/0/0/0/0/0 Lore% 68 Gallery% 48 Achievement% 48 Wizard Run 0 Options --------- Layout 1 ASCII 0 Keyboard 0 Movement Numpad Keybinds 0 Fullscreen 1 Font 24/Smallcaps Map View 50x35 Zoom Use 0% Tactical HUD 1 Map Filters NONE Filters NONE Steam 1 RUN: 82b4b7d0-89bd-4ca4-b29c-520e2bc076ba